fUST/lending_fUST_20240220
["ID","MTS","AMOUNT","RATE_DAILY","PERIOD"]
[314457183,1708367446159,-500.0,0.00027671,2]
[314457185,1708367446168,-500.0,0.00027671,2]
[314457187,1708367446177,-912.93,0.00027671,2]
[314457189,1708367446186,-500.0,0.00027671,2]
[314457191,1708367446194,-811.21,0.00027671,2]
[314457193,1708367446203,-500.0,0.00027671,2]
[314457195,1708367446212,-846.15,0.00027671,2]
[314457197,1708367446223,-500.0,0.00027671,2]
[314457198,1708367446235,-550.0,0.00027671,2]
[314457199,1708367446244,-500.0,0.00027671,2]
[314457200,1708367446253,-500.0,0.00027671,2]
[314457201,1708367446262,-500.0,0.00027671,2]
[314457202,1708367446272,-500.0,0.00027671,2]
[314457203,1708367446281,-500.0,0.00027671,2]
[314457204,1708367446290,-500.0,0.00027671,2]
[314457205,1708367446299,-500.0,0.00027671,2]
[314457206,1708367446308,-285.09875847,0.00027671,2]
[314457207,1708367446318,-519.57,0.00027671,2]
[314457208,1708367446327,-500.0,0.00027671,2]
[314457209,1708367446337,-500.0,0.00027671,15]
[314457210,1708367446346,-500.0,0.00027671,2]
[314457211,1708367446356,-500.0,0.00027671,2]
[314457212,1708367446365,-500.0,0.00027671,2]
[314457213,1708367446375,-500.0,0.00027671,2]
[314457214,1708367446384,-1057.96,0.00027671,2]
[314457215,1708367446393,-500.0,0.00027671,2]
[314457216,1708367446402,-500.0,0.00027671,2]
[314457217,1708367446411,-500.0,0.00027671,2]
[314457219,1708367446421,-500.0,0.00027671,2]
[314457220,1708367446430,-624.85471544,0.00027671,2]
[314457222,1708367446440,-766.65,0.00027671,2]
[314457224,1708367446449,-500.0,0.00027671,2]
[314457226,1708367446459,-500.0,0.00027671,2]
[314457228,1708367446468,-500.0,0.00027671,2]
[314457230,1708367446478,-551.10374698,0.00027671,2]
[314457232,1708367446487,-500.0,0.00027671,2]
[314457234,1708367446497,-500.0,0.00027671,2]
[314457236,1708367446506,-500.0,0.00027671,2]
[314457254,1708367446672,-2644.18,0.00027671,2]
[314457256,1708367446682,-1570.66,0.00027671,2]
[314457258,1708367446692,-500.0,0.00027671,2]
[314457260,1708367446703,-500.0,0.00027671,2]
[314457262,1708367446713,-578.18,0.00027671,2]
[314457264,1708367446723,-1176.49,0.00027671,2]
[314457266,1708367446732,-500.0,0.00027671,2]
[314457267,1708367446741,-500.0,0.00027671,2]
[314457269,1708367446750,-500.0,0.00027671,2]
[314457271,1708367446759,-500.0,0.00027671,2]
[314457273,1708367446768,-500.0,0.00027671,2]
[314457275,1708367446778,-500.0,0.00027671,2]
[314457277,1708367446787,-500.0,0.00027671,2]
[314457279,1708367446796,-500.0,0.00027671,2]
[314457281,1708367446806,-500.0,0.00027671,2]
[314457283,1708367446816,-500.0,0.00027671,2]
[314457285,1708367446826,-787.53,0.00027671,2]
[314457287,1708367446835,-500.0,0.00027671,2]
[314457290,1708367446845,-500.0,0.00027671,2]
[314457292,1708367446854,-500.0,0.00027671,2]
[314457294,1708367446864,-500.0,0.00027671,2]
[314457295,1708367446873,-500.0,0.00027671,2]
[314457297,1708367446882,-500.0,0.00027671,2]
[314457300,1708367446891,-500.0,0.00027671,2]
[314457302,1708367446900,-500.0,0.00027671,2]
[314457303,1708367446910,-500.0,0.00027671,2]
[314457305,1708367446919,-500.0,0.00027671,2]
[314457308,1708367446929,-500.0,0.00027671,2]
[314457310,1708367446938,-1043.11,0.00027671,2]
[314457311,1708367446947,-500.0,0.00027671,2]
[314457314,1708367446958,-500.0,0.00027671,2]
[314457316,1708367446967,-500.0,0.00027671,2]
[314457317,1708367446976,-500.0,0.00027671,2]
[314457319,1708367446985,-1874.04,0.00027671,2]
[314457321,1708367446995,-500.0,0.00027671,2]
[314457323,1708367447004,-500.0,0.00027671,2]
[314457326,1708367447013,-603.72,0.00027671,2]
[314457328,1708367447023,-500.0,0.00027671,2]
[314457330,1708367447032,-500.0,0.00027671,2]
[314457331,1708367447042,-500.0,0.00027671,2]
[314457333,1708367447051,-500.0,0.00027671,2]
[314457336,1708367447061,-500.0,0.00027671,2]
[314457338,1708367447070,-500.0,0.00027671,2]
[314457340,1708367447079,-1000.0,0.00027671,2]
[314457341,1708367447089,-507.88172486,0.00027671,2]
[314457343,1708367447098,-1750.47,0.00027671,2]
[314457346,1708367447107,-500.0,0.00027671,2]
[314457347,1708367447117,-500.0,0.00027671,2]
[314457350,1708367447127,-500.0,0.00027671,2]
[314457352,1708367447136,-1118.02,0.00027671,2]
[314457354,1708367447145,-500.0,0.00027671,2]
[314457356,1708367447155,-500.0,0.00027671,2]
[314457358,1708367447163,-205.23007652,0.00027671,2]
[314457360,1708367447173,-500.0,0.00027671,2]
[314457362,1708367447182,-500.0,0.00027671,2]
[314457364,1708367447191,-500.0,0.00027671,2]
[314457366,1708367447200,-196.03773591,0.00027671,2]
[314457367,1708367447210,-586.37,0.00027671,2]
[314457369,1708367447219,-500.0,0.00027671,2]
[314457371,1708367447227,-500.0,0.00027671,2]
[314457373,1708367447237,-425.22990293,0.00027671,2]
[314457375,1708367447246,-4816.66,0.00027671,2]
[314457377,1708367447255,-577.82,0.00027671,2]
[314457379,1708367447264,-500.0,0.00027671,2]
[314457381,1708367447273,-500.0,0.00027671,2]
[314457383,1708367447282,-516.47,0.00027671,2]
[314457385,1708367447291,-500.0,0.00027671,2]
[314457386,1708367447300,-500.0,0.00027671,2]
[314457388,1708367447309,-500.0,0.00027671,2]
[314457390,1708367447318,-2333.29,0.00027671,2]
[314457392,1708367447328,-500.0,0.00027671,2]
[314457394,1708367447337,-4378.32,0.00027671,2]
[314457396,1708367447346,-500.0,0.00027671,2]
[314457398,1708367447355,-910.01,0.00027671,2]
[314457401,1708367447365,-500.0,0.00027671,2]
[314457402,1708367447374,-797.47,0.00027671,2]
[314457404,1708367447383,-151.0,0.00027671,2]
[314457407,1708367447393,-500.0,0.00027671,2]
[314457408,1708367447402,-500.0,0.00027671,2]
[314457410,1708367447411,-500.0,0.00027671,2]
[314457412,1708367447421,-284.214656,0.00027671,2]
[314457414,1708367447430,-284.214656,0.00027671,2]
[314457416,1708367447439,-380.31477784,0.00027671,2]
[314457418,1708367447449,-500.0,0.00027671,2]
[314457420,1708367447458,-500.0,0.00027671,2]
[314457422,1708367447468,-500.0,0.00027671,2]
[314457424,1708367447479,-905.61,0.00027671,2]
[314457426,1708367447488,-500.0,0.00027671,2]
[314457428,1708367447497,-500.0,0.00027671,2]
[314457430,1708367447506,-727.06,0.00027671,2]
[314457432,1708367447515,-907.37,0.00027671,2]
[314457434,1708367447525,-500.0,0.00027671,2]
[314457436,1708367447534,-151.0,0.00027671,2]
[314457438,1708367447544,-500.0,0.00027671,2]
[314457441,1708367447554,-541.26455452,0.00027671,2]
[314457443,1708367447563,-500.0,0.00027671,2]
[314457444,1708367447573,-500.0,0.00027671,2]
[314457446,1708367447582,-500.0,0.00027671,2]
[314457448,1708367447591,-1074.74,0.00027671,2]
[314457450,1708367447601,-500.0,0.00027671,2]
[314457453,1708367447611,-500.0,0.00027671,2]
[314457454,1708367447625,-500.0,0.00027671,2]
[314457456,1708367447634,-500.0,0.00027671,2]
[314457458,1708367447644,-500.0,0.00027671,2]
[314457460,1708367447654,-500.0,0.00027671,2]
[314457462,1708367447663,-1690.29,0.00027671,2]
[314457464,1708367447672,-500.0,0.00027671,2]
[314457466,1708367447682,-500.0,0.00027671,2]
[314457468,1708367447692,-199.01728693,0.00027671,2]
[314457470,1708367447703,-500.0,0.00027671,2]
[314457472,1708367447712,-500.0,0.00027671,2]
[314457474,1708367447722,-500.0,0.00027671,2]
[314457476,1708367447731,-4924.96,0.00027671,2]
[314457478,1708367447742,-559.94,0.00027671,2]
[314457480,1708367447752,-2916.3,0.00027671,2]
[314457482,1708367447761,-3521.91,0.00027671,2]
[314457484,1708367447770,-500.0,0.00027671,2]
[314457486,1708367447779,-151.0,0.00027671,2]
[314457488,1708367447788,-500.0,0.00027671,2]
[314457490,1708367447797,-3532.56,0.00027671,2]
[314457492,1708367447807,-500.0,0.00027671,2]
[314457494,1708367447816,-2054.58,0.00027671,2]
[314457496,1708367447825,-500.0,0.00027671,2]
[314457498,1708367447834,-500.0,0.00027671,2]
[314457500,1708367447843,-500.0,0.00027671,2]
[314457502,1708367447852,-2379.85,0.00027671,2]
[314457504,1708367447861,-176.36067753,0.00027671,2]
[314457506,1708367447870,-500.0,0.00027671,2]
[314457508,1708367447880,-282.39811235,0.00027671,2]
[314457510,1708367447889,-500.0,0.00027671,2]
[314457512,1708367447898,-9364.8,0.00027671,2]
[314457514,1708367447907,-1083.26,0.00027671,2]
[314457516,1708367447915,-500.0,0.00027671,2]
[314457518,1708367447924,-500.0,0.00027671,2]
[314457520,1708367447933,-500.0,0.00027671,2]
[314457522,1708367447943,-690.81,0.00027671,2]
[314457524,1708367447953,-1048.44,0.00027671,2]
[314457526,1708367447963,-1633.78,0.00027671,2]
[314457528,1708367447972,-500.0,0.00027671,2]
[314457530,1708367447982,-12732.29,0.00027671,2]
[314457532,1708367447991,-17905.74,0.00027671,2]
[314457534,1708367448000,-25345.28,0.00027671,2]
[314457536,1708367448010,-500.0,0.00027671,2]
[314457538,1708367448019,-3571.69,0.00027671,2]
[314457540,1708367448029,-1501.7,0.00027671,2]
[314457542,1708367448038,-19882.51,0.00027671,2]
[314457544,1708367448047,-500.0,0.00027671,2]
[314457546,1708367448055,-500.0,0.00027671,2]
[314457548,1708367448065,-500.0,0.00027671,2]
[314457550,1708367448074,-500.0,0.00027671,2]
[314457552,1708367448083,-500.0,0.00027671,2]
[314457554,1708367448092,-500.0,0.00027671,2]
[314457556,1708367448101,-12867.4,0.00027671,2]
[314457558,1708367448111,-2687.22,0.00027671,2]
[314457560,1708367448120,-28999.91,0.00027671,2]
[314457562,1708367448129,-3171.61,0.00027671,2]
[314457564,1708367448139,-660.77,0.00027671,2]
[314457566,1708367448148,-500.0,0.00027671,2]
[314457568,1708367448157,-500.0,0.00027671,2]
[314457570,1708367448165,-500.0,0.00027671,2]
[314457572,1708367448174,-500.0,0.00027671,2]
[314457574,1708367448183,-500.0,0.00027671,2]
[314457576,1708367448192,-4036.49,0.00027671,2]
[314457578,1708367448201,-2908.73,0.00027671,2]
[314457580,1708367448210,-2728.08,0.00027671,2]
[314457582,1708367448219,-548.91563104,0.00027671,2]
[314457584,1708367448230,-444.969711,0.00027671,2]
[314457586,1708367448239,-564.87891502,0.00027671,2]
[314457588,1708367448248,-444.969711,0.00027671,2]
[314457590,1708367448261,-1394.32,0.00027671,2]
[314457592,1708367448270,-500.0,0.00027671,2]
[314457594,1708367448279,-3595.38,0.00027671,2]
[314457596,1708367448288,-500.0,0.00027671,2]
[314457598,1708367448297,-500.0,0.00027671,2]
[314457600,1708367448306,-637.71,0.00027671,2]
[314457602,1708367448315,-538.21,0.00027671,2]
[314457604,1708367448323,-500.0,0.00027671,2]
[314457606,1708367448333,-500.0,0.00027671,2]
[314457608,1708367448342,-500.0,0.00027671,2]
[314457610,1708367448351,-500.0,0.00027671,2]
[314457612,1708367448361,-500.0,0.00027671,2]
[314457614,1708367448370,-446.05115359,0.00027671,2]
[314457616,1708367448379,-500.0,0.00027671,2]
[314457618,1708367448388,-500.0,0.00027671,2]
[314457620,1708367448396,-5332.66,0.00027671,2]
[314457622,1708367448405,-500.0,0.00027671,2]
[314457623,1708367448415,-500.0,0.00027671,2]
[314457625,1708367448424,-2281.65,0.00027671,2]
[314457627,1708367448433,-500.0,0.00027671,2]
[314457629,1708367448443,-601.93,0.00027671,2]
[314457631,1708367448452,-955.79,0.00027671,2]
[314457634,1708367448462,-617.18,0.00027671,2]
[314457635,1708367448471,-872.49,0.00027671,2]
[314457637,1708367448481,-500.0,0.00027671,2]
[314457638,1708367448490,-537.12,0.00027671,2]
[314457639,1708367448499,-151.0,0.00027671,2]
[314457640,1708367448507,-150.1,0.00027877,2]
[314457641,1708367448516,-300.0,0.00027885,2]
[314457642,1708367448525,-1410.49093507,0.00027895,2]
[314457643,1708367448534,-273.02955308,0.00027943,2]
[314457644,1708367448543,-500.0,0.00027944,2]
[314457645,1708367448552,-500.0,0.00027944,2]
[314457646,1708367448561,-500.0,0.00027944,2]
[314457647,1708367448570,-241.46723243,0.00027944,2]
[314457648,1708367448579,-499.96937152,0.00027944,2]
[314457649,1708367448588,-500.0,0.00027944,2]
[314457650,1708367448597,-500.0,0.00027944,2]
[314457651,1708367448606,-500.0,0.00027944,2]
[314457652,1708367448616,-152.47342128,0.00027944,2]
[314457654,1708367448629,-500.0,0.00027944,2]
[314457655,1708367448639,-500.0,0.00027944,2]
[314457657,1708367448649,-500.0,0.00027944,2]
[314457659,1708367448659,-500.0,0.00027944,2]
[314457661,1708367448670,-332.7262879,0.00027944,2]
[314457663,1708367448680,-500.0,0.00027944,2]
[314457665,1708367448690,-500.0,0.00027944,2]
[314457667,1708367448703,-500.0,0.00027945,2]
[314457669,1708367448713,-544.53348026,0.00027945,2]
[314457671,1708367448723,-500.0,0.00027945,2]
[314457673,1708367448735,-500.0,0.00027945,2]
[314457675,1708367448745,-912.93,0.00027945,2]
[314457677,1708367448755,-500.0,0.00027945,2]
[314457679,1708367448764,-811.21,0.00027945,2]
[314457681,1708367448773,-500.0,0.00027945,2]
[314457683,1708367448783,-846.15,0.00027945,2]
[314457685,1708367448792,-500.0,0.00027945,2]
[314457687,1708367448802,-500.0,0.00027945,2]
[314457689,1708367448811,-500.0,0.00027945,2]
[314457691,1708367448821,-500.0,0.00027945,2]
[314457693,1708367448830,-500.0,0.00027945,2]
[314457695,1708367448839,-500.0,0.00027945,2]
[314457697,1708367448848,-500.0,0.00027945,2]
[314457699,1708367448857,-243.69069572,0.00027945,2]
[314457701,1708367448866,-519.57,0.00027945,2]
[314457703,1708367448876,-500.0,0.00027945,2]
[314457705,1708367448885,-500.0,0.00027945,15]
[314457707,1708367448894,-157.5654042,0.00027945,2]
[314457709,1708367448903,-500.0,0.00027945,2]
[314457711,1708367448912,-500.0,0.00027945,2]
[314457713,1708367448921,-500.0,0.00027945,2]
[314457715,1708367448930,-1057.96,0.00027945,2]
[314457717,1708367448939,-500.0,0.00027945,2]
[314457719,1708367448948,-500.0,0.00027945,2]
[314457720,1708367448957,-500.0,0.00027945,2]
[314457722,1708367448968,-500.0,0.00027945,2]
[314457724,1708367448977,-766.65,0.00027945,2]
[314457726,1708367448988,-500.0,0.00027945,2]
[314457729,1708367448997,-500.0,0.00027945,2]
[314457731,1708367449007,-500.0,0.00027945,2]
[314457732,1708367449017,-500.0,0.00027945,2]
[314457735,1708367449026,-500.0,0.00027945,2]
[314457736,1708367449035,-500.0,0.00027945,2]
[314457738,1708367449045,-2644.18,0.00027945,2]
[314457740,1708367449054,-1570.66,0.00027945,2]
[314457742,1708367449063,-500.0,0.00027945,2]
[314457744,1708367449072,-500.0,0.00027945,2]
[314457746,1708367449082,-578.18,0.00027945,2]
[314457748,1708367449090,-1176.49,0.00027945,2]
[314457750,1708367449100,-500.0,0.00027945,2]
[314457752,1708367449110,-500.0,0.00027945,2]
[314457754,1708367449119,-500.0,0.00027945,2]
[314457756,1708367449129,-500.0,0.00027945,2]
[314457758,1708367449138,-500.0,0.00027945,2]
[314457760,1708367449147,-500.0,0.00027945,2]
[314457762,1708367449156,-500.0,0.00027945,2]
[314457764,1708367449165,-500.0,0.00027945,2]
[314457766,1708367449174,-500.0,0.00027945,2]
[314457768,1708367449183,-500.0,0.00027945,2]
[314457770,1708367449192,-787.53,0.00027945,2]
[314457772,1708367449201,-500.0,0.00027945,2]
[314457775,1708367449211,-500.0,0.00027945,2]
[314457777,1708367449220,-500.0,0.00027945,2]
[314457778,1708367449230,-500.0,0.00027945,2]
[314457780,1708367449239,-500.0,0.00027945,2]
[314457782,1708367449249,-500.0,0.00027945,2]
[314457784,1708367449259,-500.0,0.00027945,2]
[314457786,1708367449268,-375.92245814,0.00027945,2]
[314457788,1708367449277,-500.0,0.00027945,2]
[314457790,1708367449286,-347.99751883,0.00027945,2]
[314457792,1708367449296,-612.37012687,0.00027945,2]
[314457794,1708367449304,-1043.11,0.00027945,2]
[314457796,1708367449313,-500.0,0.00027945,2]
[314457798,1708367449322,-219.73623338,0.00027945,2]
[314457800,1708367449332,-500.0,0.00027945,2]
[314457802,1708367449341,-500.0,0.00027945,2]
[314457804,1708367449350,-1874.04,0.00027945,2]
[314457806,1708367449359,-500.0,0.00027945,2]
[314457808,1708367449368,-433.07544572,0.00027945,2]
[314457810,1708367449377,-603.72,0.00027945,2]
[314457812,1708367449386,-500.0,0.00027945,2]
[314457814,1708367449395,-500.0,0.00027945,2]
[314457816,1708367449404,-500.0,0.00027945,2]
[314457818,1708367449413,-500.0,0.00027945,2]
[314457820,1708367449422,-500.0,0.00027945,2]
[314457822,1708367449431,-500.0,0.00027945,2]
[314457824,1708367449440,-1000.0,0.00027945,2]
[314457826,1708367449450,-1750.47,0.00027945,2]
[314457828,1708367449458,-500.0,0.00027945,2]
[314457830,1708367449468,-500.0,0.00027945,2]
[314457832,1708367449477,-500.0,0.00027945,2]
[314457834,1708367449486,-1118.02,0.00027945,2]
[314457836,1708367449495,-500.0,0.00027945,2]
[314457838,1708367449504,-500.0,0.00027945,2]
[314457840,1708367449513,-500.0,0.00027945,2]
[314457842,1708367449522,-500.0,0.00027945,2]
[314457844,1708367449531,-182.8155617,0.00027945,2]
[314457846,1708367449540,-586.37,0.00027945,2]
[314457848,1708367449549,-502.1084878,0.00027945,2]
[314457850,1708367449558,-500.0,0.00027945,2]
[314457852,1708367449567,-4816.66,0.00027945,2]
[314457854,1708367449576,-577.82,0.00027945,2]
[314457856,1708367449585,-500.0,0.00027945,2]
[314457858,1708367449594,-500.0,0.00027945,2]
[314457860,1708367449603,-516.47,0.00027945,2]
[314457861,1708367449612,-500.0,0.00027945,2]
[314457863,1708367449625,-500.0,0.00027945,2]
[314457865,1708367449634,-500.0,0.00027945,2]
[314457868,1708367449644,-2333.29,0.00027945,2]
[314457870,1708367449654,-500.0,0.00027945,2]
[314457871,1708367449665,-4378.32,0.00027945,2]
[314457873,1708367449674,-500.0,0.00027945,2]
[314457875,1708367449683,-910.01,0.00027945,2]
[314457877,1708367449692,-500.0,0.00027945,2]
[314457879,1708367449703,-797.47,0.00027945,2]
[314457881,1708367449713,-151.0,0.00027945,2]
[314457883,1708367449722,-500.0,0.00027945,2]
[314457885,1708367449732,-500.0,0.00027945,2]
[314457887,1708367449742,-500.0,0.00027945,2]
[314457889,1708367449751,-284.214656,0.00027945,2]
[314457891,1708367449760,-284.214656,0.00027945,2]
[314457893,1708367449770,-284.214656,0.00027945,2]
[314457895,1708367449779,-284.214656,0.00027945,2]
[314457897,1708367449789,-500.0,0.00027945,2]
[314457899,1708367449798,-500.0,0.00027945,2]
[314457901,1708367449807,-500.0,0.00027945,2]
[314457903,1708367449817,-905.61,0.00027945,2]
[314457906,1708367449827,-500.0,0.00027945,2]
[314457907,1708367449836,-511.2002696,0.00027945,2]
[314457910,1708367449845,-727.06,0.00027945,2]
[314457911,1708367449854,-907.37,0.00027945,2]
[314457914,1708367449864,-500.0,0.00027945,2]
[314457916,1708367449873,-151.0,0.00027945,2]
[314457917,1708367449882,-151.0,0.00027945,2]
[314457920,1708367449892,-500.0,0.00027945,2]
[314457921,1708367449902,-500.0,0.00027945,2]
[314457923,1708367449911,-500.0,0.00027945,2]
[314457925,1708367449920,-500.0,0.00027945,2]
[314457928,1708367449929,-1074.74,0.00027945,2]
[314457930,1708367449939,-500.0,0.00027945,2]
[314457931,1708367449948,-500.0,0.00027945,2]
[314457934,1708367449958,-500.0,0.00027945,2]
[314457936,1708367449968,-500.0,0.00027945,2]
[314457938,1708367449979,-500.0,0.00027945,2]
[314457940,1708367449988,-500.0,0.00027945,2]
[314457942,1708367449997,-1690.29,0.00027945,2]
[314457943,1708367450006,-500.0,0.00027945,2]
[314457945,1708367450016,-500.0,0.00027945,2]
[314457947,1708367450026,-500.0,0.00027945,2]
[314457949,1708367450036,-500.0,0.00027945,2]
[314457952,1708367450046,-500.0,0.00027945,2]
[314457953,1708367450056,-4924.96,0.00027945,2]
[314457956,1708367450066,-559.94,0.00027945,2]
[314457958,1708367450076,-2916.3,0.00027945,2]
[314457960,1708367450085,-3521.91,0.00027945,2]
[314457961,1708367450094,-500.0,0.00027945,2]
[314457963,1708367450104,-500.0,0.00027945,2]
[314457965,1708367450113,-3532.56,0.00027945,2]
[314457967,1708367450123,-500.0,0.00027945,2]
[314457969,1708367450131,-2054.58,0.00027945,2]
[314457971,1708367450140,-500.0,0.00027945,2]
[314457973,1708367450150,-500.0,0.00027945,2]
[314457975,1708367450159,-500.0,0.00027945,2]
[314457977,1708367450168,-2379.85,0.00027945,2]
[314457980,1708367450182,-500.0,0.00027945,2]
[314457981,1708367450191,-500.0,0.00027945,2]
[314457984,1708367450200,-9364.8,0.00027945,2]
[314457986,1708367450210,-1083.26,0.00027945,2]
[314457988,1708367450220,-500.0,0.00027945,2]
[314457990,1708367450229,-502.61961721,0.00027945,2]
[314457991,1708367450239,-500.0,0.00027945,2]
[314457993,1708367450248,-690.81,0.00027945,2]
[314457995,1708367450257,-1048.44,0.00027945,2]
[314457997,1708367450266,-1633.78,0.00027945,2]
[314457999,1708367450276,-500.0,0.00027945,2]
[314458001,1708367450285,-12732.29,0.00027945,2]
[314458003,1708367450295,-17905.74,0.00027945,2]
[314458005,1708367450305,-25345.28,0.00027945,2]
[314458007,1708367450314,-500.0,0.00027945,2]
[314458009,1708367450323,-3571.69,0.00027945,2]
[314458011,1708367450331,-1501.7,0.00027945,2]
[314458013,1708367450341,-19882.51,0.00027945,2]
[314458015,1708367450350,-500.0,0.00027945,2]
[314458017,1708367450359,-648.49760759,0.00027945,2]
[314458019,1708367450368,-500.0,0.00027945,2]
[314458021,1708367450378,-500.0,0.00027945,2]
[314458023,1708367450388,-500.0,0.00027945,2]
[314458025,1708367450397,-500.0,0.00027945,2]
[314458028,1708367450407,-12867.4,0.00027945,2]
[314458029,1708367450416,-2687.22,0.00027945,2]
[314458031,1708367450426,-28999.91,0.00027945,2]
[314458033,1708367450435,-3171.61,0.00027945,2]
[314458035,1708367450445,-660.77,0.00027945,2]
[314458037,1708367450454,-500.0,0.00027945,2]
[314458039,1708367450464,-500.0,0.00027945,2]
[314458041,1708367450474,-500.0,0.00027945,2]
[314458043,1708367450484,-500.0,0.00027945,2]
[314458045,1708367450494,-500.0,0.00027945,2]
[314458047,1708367450503,-4036.49,0.00027945,2]
[314458049,1708367450512,-2908.73,0.00027945,2]
[314458051,1708367450522,-2728.08,0.00027945,2]
[314458053,1708367450531,-444.969711,0.00027945,2]
[314458057,1708367450686,-444.969711,0.00027945,2]
[314458059,1708367450697,-444.969711,0.00027945,2]
[314458061,1708367450708,-444.969711,0.00027945,2]
[314458063,1708367450717,-1394.32,0.00027945,2]
[314458065,1708367450726,-392.5844465,0.00027945,2]
[314458067,1708367450736,-3595.38,0.00027945,2]
[314458069,1708367450746,-500.0,0.00027945,2]
[314458071,1708367450755,-500.0,0.00027945,2]
[314458073,1708367450764,-637.71,0.00027945,2]
[314458074,1708367450774,-538.21,0.00027945,2]
[314458076,1708367450783,-500.0,0.00027945,2]
[314458078,1708367450794,-500.0,0.00027945,2]
[314458080,1708367450803,-500.0,0.00027945,2]
[314458083,1708367450813,-577.13058179,0.00027945,2]
[314458084,1708367450822,-500.0,0.00027945,2]
[314458087,1708367450832,-500.0,0.00027945,2]
[314458089,1708367450841,-500.0,0.00027945,2]
[314458091,1708367450851,-5332.66,0.00027945,2]
[314458093,1708367450860,-500.0,0.00027945,2]
[314458095,1708367450870,-500.0,0.00027945,2]
[314458097,1708367450883,-2281.65,0.00027945,2]
[314458099,1708367450892,-500.0,0.00027945,2]
[314458101,1708367450902,-601.93,0.00027945,2]
[314458103,1708367450911,-955.79,0.00027945,2]
[314458105,1708367450921,-617.18,0.00027945,2]
[314458107,1708367450931,-500.0,0.00027945,2]
[314458109,1708367450940,-537.12,0.00027945,2]
[314458111,1708367450949,-872.49,0.00027945,2]
[314458113,1708367450961,-151.0,0.00027945,2]
[314458115,1708367450970,-151.0,0.00027945,2]
[314458117,1708367450980,-153.0,0.00027945,2]
[314458119,1708367450989,-153.0,0.00027945,2]
[314458121,1708367450999,-153.0,0.00027945,2]
[314458123,1708367451009,-153.0,0.00027945,2]
[314458125,1708367451019,-153.0,0.00027945,2]
[314458127,1708367451028,-200.3472215,0.00027945,2]
[314458129,1708367451037,-153.0,0.00027945,2]
[314458131,1708367451047,-306.0,0.00027945,2]
[314458133,1708367451056,-310.1284467,0.00027945,2]
[314458135,1708367451065,-200.3836121,0.00027945,2]
[314458137,1708367451075,-200.3836123,0.00027945,2]
[314458139,1708367451084,-200.3836122,0.00027945,2]
[314458141,1708367451094,-200.3836123,0.00027945,2]
[314458143,1708367451103,-200.3836121,0.00027945,2]
[314458145,1708367451112,-200.1652681,0.00027945,2]
[314458147,1708367451122,-1000.0,0.00028,28]
[314458149,1708367451131,-510.52892832,0.00028,2]
[314458151,1708367451140,-300.0,0.00028143,2]
[314458153,1708367451149,-1410.49093507,0.00028194,2]
[314458155,1708367451159,-509.61617548,0.00028219,2]
[314458157,1708367451168,-189.36076912,0.00028219,2]